fUSD/lending_fUSD_20250214
["ID","MTS","AMOUNT","RATE_DAILY","PERIOD"]
[353105345,1739562714007,-625.72740378,0.00014191,2]
[353105346,1739562714018,-832.75,0.00014191,2]
[353105347,1739562714028,-500.0,0.00014191,2]
[353105348,1739562714038,-500.0,0.00014191,2]
[353105349,1739562714048,-500.0,0.00014191,2]
[353105350,1739562714179,-1221.57,0.00014191,2]
[353105351,1739562714191,-792.46,0.00014191,2]
[353105352,1739562714202,-1340.02,0.00014191,2]
[353105353,1739562714211,-1876.33,0.00014191,2]
[353105354,1739562714221,-500.0,0.00014191,2]
[353105355,1739562714230,-1174.59,0.00014191,2]
[353105356,1739562714240,-581.82,0.00014191,2]
[353105357,1739562714251,-726.0,0.00014191,2]
[353105358,1739562714260,-500.0,0.00014191,2]
[353105359,1739562714269,-1106.3,0.00014191,2]
[353105360,1739562714279,-500.0,0.00014191,2]
[353105361,1739562714289,-500.0,0.00014191,2]
[353105362,1739562714298,-500.0,0.00014191,2]
[353105363,1739562714317,-840.02,0.00014191,2]
[353105364,1739562714331,-669.29,0.00014191,2]
[353105365,1739562714342,-500.0,0.00014191,2]
[353105366,1739562714354,-500.0,0.00014191,2]
[353105367,1739562714364,-500.0,0.00014191,2]
[353105368,1739562714374,-894.93,0.00014191,2]
[353105369,1739562714384,-1721.49,0.00014191,2]
[353105370,1739562714394,-500.0,0.00014191,2]
[353105371,1739562714404,-907.54,0.00014191,2]
[353105372,1739562714414,-917.22,0.00014191,2]
[353105373,1739562714423,-1464.55,0.00014191,2]
[353105374,1739562714434,-500.0,0.00014191,2]
[353105375,1739562714445,-776.32,0.00014191,2]
[353105376,1739562714455,-500.0,0.00014191,2]
[353105377,1739562714465,-846.98,0.00014191,2]
[353105378,1739562714475,-1634.29,0.00014191,2]
[353105379,1739562714484,-1469.68,0.00014191,2]
[353105380,1739562714494,-500.0,0.00014191,2]
[353105381,1739562714504,-673.64,0.00014191,2]
[353105382,1739562714514,-617.11,0.00014191,2]
[353105383,1739562714524,-2522.39,0.00014191,2]
[353105384,1739562714534,-178.79281498,0.00014191,2]
[353105385,1739562714544,-2518.18,0.00014191,2]
[353105386,1739562714555,-927.88,0.00014191,2]
[353105387,1739562714565,-2061.04,0.00014191,2]
[353105388,1739562714575,-899.7,0.00014191,2]
[353105389,1739562714585,-3177.51,0.00014191,2]
[353105390,1739562714595,-750.88,0.00014191,2]
[353105391,1739562714605,-500.0,0.00014191,2]
[353105392,1739562714616,-946.5,0.00014191,2]
[353105393,1739562714627,-500.0,0.00014191,2]
[353105394,1739562714638,-944.68,0.00014191,2]
[353105395,1739562714648,-689.47,0.00014191,2]
[353105396,1739562714659,-1146.28,0.00014191,2]
[353105397,1739562714670,-500.0,0.00014191,2]
[353105398,1739562714680,-500.0,0.00014191,2]
[353105399,1739562714691,-500.0,0.00014191,2]
[353105400,1739562714701,-609.88,0.00014191,2]
[353105401,1739562714711,-500.0,0.00014191,2]
[353105402,1739562714722,-2346.44,0.00014191,2]
[353105403,1739562714733,-831.68,0.00014191,2]
[353105404,1739562714744,-500.0,0.00014191,2]
[353105405,1739562714755,-500.0,0.00014191,2]
[353105406,1739562714765,-670.21,0.00014191,2]
[353105407,1739562714776,-1050.3,0.00014191,2]
[353105408,1739562714787,-2668.09,0.00014191,2]
[353105409,1739562714797,-612.48,0.00014191,2]
[353105410,1739562714807,-759.26,0.00014191,2]
[353105411,1739562714817,-500.0,0.00014191,2]
[353105412,1739562714833,-519.1,0.00014191,2]
[353105413,1739562714844,-541.17,0.00014191,2]
[353105414,1739562714855,-622.95,0.00014191,2]
[353105415,1739562714867,-872.41,0.00014191,2]
[353105416,1739562714878,-590.06,0.00014191,2]
[353105417,1739562714889,-1511.18,0.00014191,2]
[353105418,1739562714900,-500.0,0.00014191,2]
[353105419,1739562714911,-500.0,0.00014191,2]
[353105420,1739562714922,-500.0,0.00014191,2]
[353105421,1739562714933,-1368.76,0.00014191,2]
[353105422,1739562714948,-1500.64,0.00014191,2]
[353105423,1739562714959,-995.11,0.00014191,2]
[353105424,1739562714970,-500.0,0.00014191,2]
[353105425,1739562714981,-1019.71,0.00014191,2]
[353105426,1739562714991,-500.0,0.00014191,2]
[353105427,1739562715002,-1355.18,0.00014191,2]
[353105428,1739562715013,-500.0,0.00014191,2]
[353105429,1739562715025,-1610.54,0.00014191,2]
[353105430,1739562715038,-500.0,0.00014191,2]
[353105431,1739562715049,-777.08,0.00014191,2]
[353105432,1739562715059,-500.0,0.00014191,2]
[353105433,1739562715070,-574.37,0.00014191,2]
[353105434,1739562715080,-976.95,0.00014191,2]
[353105435,1739562715092,-500.0,0.00014191,2]
[353105436,1739562715102,-500.0,0.00014191,2]
[353105437,1739562715113,-500.0,0.00014191,2]
[353105438,1739562715124,-500.0,0.00014191,2]
[353105439,1739562715135,-500.0,0.00014191,2]
[353105440,1739562715147,-593.78,0.00014191,2]
[353105441,1739562715158,-971.56,0.00014191,2]
[353105442,1739562715169,-664.53,0.00014191,2]
[353105443,1739562715179,-500.0,0.00014191,2]
[353105444,1739562715190,-500.0,0.00014191,2]
[353105445,1739562715201,-500.0,0.00014191,2]
[353105446,1739562715211,-500.0,0.00014191,2]
[353105447,1739562715221,-500.0,0.00014191,2]
[353105448,1739562715232,-1428.05,0.00014191,2]
[353105449,1739562715244,-743.54,0.00014191,2]
[353105450,1739562715253,-398.04696257,0.00014191,2]
[353105451,1739562715264,-500.0,0.00014191,2]
[353105452,1739562715275,-500.0,0.00014191,2]
[353105453,1739562715285,-500.0,0.00014191,2]
[353105454,1739562715296,-1693.38,0.00014191,2]
[353105455,1739562715306,-500.0,0.00014191,2]
[353105456,1739562715316,-868.98,0.00014191,2]
[353105457,1739562715325,-500.0,0.00014191,2]
[353105458,1739562715335,-500.0,0.00014191,2]
[353105459,1739562715350,-500.0,0.00014191,2]
[353105460,1739562715360,-500.0,0.00014191,2]
[353105461,1739562715370,-500.0,0.00014191,2]
[353105462,1739562715381,-571.73093696,0.00014191,2]
[353105463,1739562715392,-500.0,0.00014191,2]
[353105464,1739562715403,-500.0,0.00014191,2]
[353105465,1739562715412,-1308.91,0.00014191,2]
[353105466,1739562715422,-1157.32,0.00014191,2]
[353105467,1739562715433,-511.24164014,0.00014191,2]
[353105468,1739562715444,-500.0,0.00014191,2]
[353105469,1739562715455,-500.0,0.00014191,2]
[353105470,1739562715465,-500.0,0.00014191,2]
[353105471,1739562715476,-870.0,0.00014191,2]
[353105472,1739562715486,-508.27,0.00014191,2]
[353105473,1739562715497,-771.51,0.00014191,2]
[353105474,1739562715508,-801.88,0.00014191,2]
[353105475,1739562715519,-500.0,0.00014191,2]
[353105476,1739562715529,-1014.77,0.00014191,2]
[353105477,1739562715541,-500.0,0.00014191,2]
[353105478,1739562715551,-1353.1,0.00014191,2]
[353105479,1739562715562,-925.95,0.00014191,2]
[353105480,1739562715572,-748.82,0.00014191,2]
[353105481,1739562715583,-705.11,0.00014191,2]
[353105482,1739562715593,-1075.65,0.00014191,2]
[353105483,1739562715604,-1027.42809752,0.00014191,2]
[353105484,1739562715658,-500.0,0.00013698,2]
[353105485,1739562715669,-302.89190248,0.00014191,2]
[353105486,1739562715679,-174.58266836,0.00014191,2]
[353105487,1739562715695,-347.23733164,0.00014191,2]
[353105488,1739562715706,-500.0,0.00014191,2]
[353105489,1739562715717,-500.0,0.00014191,2]
[353105490,1739562715727,-823.85,0.00014191,2]
[353105491,1739562715738,-679.24,0.00014191,2]
[353105492,1739562715747,-605.01,0.00014191,2]
[353105493,1739562715759,-1139.63,0.00014191,2]
[353105494,1739562715770,-855.34,0.00014191,2]
[353105495,1739562715780,-500.0,0.00014191,2]
[353105496,1739562715790,-500.0,0.00014191,2]
[353105497,1739562715802,-646.14,0.00014191,2]
[353105498,1739562715813,-657.84,0.00014191,2]
[353105499,1739562715824,-563.26,0.00014191,2]
[353105500,1739562715834,-500.0,0.00014191,2]
[353105501,1739562715847,-883.37,0.00014191,2]
[353105502,1739562715862,-500.0,0.00014191,2]
[353105503,1739562715872,-500.0,0.00014191,2]
[353105504,1739562715882,-500.0,0.00014191,2]
[353105505,1739562715892,-500.0,0.00014191,2]
[353105506,1739562715903,-1696.12,0.00014191,2]
[353105507,1739562715913,-1749.6,0.00014191,2]
[353105508,1739562715922,-500.0,0.00014191,2]
[353105509,1739562715932,-1098.61,0.00014191,2]
[353105510,1739562715944,-500.0,0.00014191,2]
[353105511,1739562715954,-507.82,0.00014191,2]
[353105512,1739562715964,-500.0,0.00014191,2]
[353105513,1739562715975,-1030.08,0.00014191,2]
[353105514,1739562715985,-1239.86,0.00014191,2]
[353105515,1739562715996,-508.08793837,0.00014191,2]
[353105516,1739562716005,-806.18,0.00014191,2]
[353105517,1739562716016,-564.04,0.00014191,2]
[353105518,1739562716026,-500.0,0.00014191,2]
[353105519,1739562716035,-500.0,0.00014191,2]
[353105520,1739562716044,-500.0,0.00014191,2]
[353105521,1739562716054,-683.79,0.00014191,2]
[353105522,1739562716064,-500.0,0.00014191,2]
[353105523,1739562716076,-706.12,0.00014191,2]
[353105524,1739562716087,-897.05,0.00014191,2]
[353105525,1739562716098,-1669.07,0.00014191,2]
[353105526,1739562716110,-1508.12,0.00014191,2]
[353105527,1739562716119,-508.90706515,0.00014191,2]
[353105528,1739562716129,-185.09825205,0.00014191,2]
[353105529,1739562716139,-314.00242649,0.00014191,2]
[353105530,1739562716149,-711.17,0.00014191,2]
[353105531,1739562716159,-500.0,0.00014191,2]
[353105532,1739562716170,-1534.42,0.00014191,2]
[353105533,1739562716179,-1736.71,0.00014191,2]
[353105534,1739562716189,-863.93,0.00014191,2]
[353105535,1739562716199,-1043.93,0.00014191,2]
[353105536,1739562716209,-500.0,0.00014191,2]
[353105537,1739562716220,-500.0,0.00014191,2]
[353105538,1739562716229,-500.0,0.00014191,2]
[353105539,1739562716239,-500.0,0.00014191,2]
[353105540,1739562716249,-500.0,0.00014191,2]
[353105541,1739562716260,-500.0,0.00014191,2]
[353105542,1739562716271,-1176.07,0.00014191,2]
[353105543,1739562716281,-747.93328145,0.00014191,2]
[353105544,1739562716315,-500.0,0.00013698,2]
[353105545,1739562716325,-500.0,0.00013698,2]
[353105546,1739562716335,-22.1,0.0001378,2]
[353105547,1739562716347,-477.9,0.0001378,2]
[353105548,1739562716357,-364.54671855,0.00014191,2]
[353105549,1739562716367,-1588.84,0.00014191,2]
[353105550,1739562716378,-500.0,0.00014191,2]
[353105551,1739562716387,-500.0,0.00014191,2]
[353105552,1739562716397,-500.0,0.00014191,2]
[353105553,1739562716406,-1088.38,0.00014191,2]
[353105554,1739562716416,-508.48869117,0.00014191,2]
[353105555,1739562716426,-1576.47,0.00014191,2]
[353105556,1739562716436,-500.0,0.00014191,2]
[353105557,1739562716447,-1022.12,0.00014191,2]
[353105558,1739562716456,-869.06,0.00014191,2]
[353105559,1739562716466,-580.79,0.00014191,2]
[353105560,1739562716476,-500.0,0.00014191,2]
[353105561,1739562716485,-500.0,0.00014191,2]
[353105562,1739562716495,-791.23,0.00014191,2]
[353105563,1739562716505,-569.88,0.00014191,2]
[353105564,1739562716514,-500.0,0.00014191,2]
[353105565,1739562716524,-500.0,0.00014191,2]
[353105566,1739562716534,-1129.3,0.00014191,2]
[353105567,1739562716543,-500.0,0.00014191,2]
[353105568,1739562716552,-2469.77605981,0.00014191,2]
[353105569,1739562716571,-837.61394019,0.00014191,2]
[353105570,1739562716582,-500.0,0.00014191,2]
[353105571,1739562716592,-472.85596328,0.00014191,2]
[353105572,1739562716601,-589.87447182,0.00014191,2]
[353105573,1739562716612,-4755.22,0.00014191,2]
[353105574,1739562716622,-500.0,0.00014191,2]
[353105575,1739562716632,-1208.91,0.00014191,2]
[353105576,1739562716642,-635.52562471,0.00014191,2]
[353105577,1739562716654,-253.38437529,0.00014191,2]
[353105578,1739562716665,-479.85172576,0.00014191,2]
[353105579,1739562744987,3015.99735198,0.0002076,60]
[353105580,1739562745310,3015.99735198,0.0002076,60]
[353105581,1739562745609,3015.99735198,0.0002076,60]
[353105582,1739562745850,3015.99735198,0.0002076,60]
[353105583,1739562784717,212253.5627908,0.0002076,60]
[353105584,1739562785063,212253.5627908,0.0002076,60]
[353105585,1739562785405,212253.5627908,0.0002076,60]
[353105586,1739562785708,212253.5627908,0.0002076,60]
[353105587,1739562792203,38779.60340614,0.0002076,60]
[353105588,1739562792515,38779.60340614,0.0002076,60]
[353105589,1739562792866,38779.60340614,0.0002076,60]
[353105590,1739562793285,38779.60340614,0.0002076,60]
[353105591,1739562798909,200.0,0.0002076,60]
[353105592,1739562799221,200.0,0.0002076,60]
[353105593,1739562808928,7662.64450237,0.0002076,60]
[353105594,1739562809238,7662.64450237,0.0002076,60]
[353105595,1739562809555,7662.64450237,0.0002076,60]
[353105596,1739562809866,7662.64450237,0.0002076,60]
[353105597,1739562821044,1507.99867599,0.0002076,60]
[353105598,1739562821401,1507.99867599,0.0002076,60]
[353105599,1739562821818,1507.99867599,0.0002076,60]
[353105600,1739562822150,1507.99867599,0.0002076,60]
[353105609,1739562964903,36000.53137904,0.0002076,60]
[353105610,1739562965330,36000.53137904,0.0002076,60]
[353105611,1739562965672,36000.53137904,0.0002076,60]
[353105612,1739562965954,36000.53137904,0.0002076,60]
[353105613,1739562972725,10971.33310533,0.0002076,60]
[353105614,1739562972928,10971.33310533,0.0002076,60]
[353105615,1739562973218,10971.33310533,0.0002076,60]
[353105616,1739562973853,10971.33310533,0.0002076,60]
[353105617,1739562979244,460.14338473,0.0002076,60]
[353105618,1739562979545,460.14338473,0.0002076,60]
[353105619,1739562979863,460.14338473,0.0002076,60]
[353105620,1739562980291,460.14338473,0.0002076,60]
[353105621,1739562989029,1914.01880037,0.0002076,60]
[353105622,1739562989359,1914.01880037,0.0002076,60]
[353105623,1739562989707,1914.01880037,0.0002076,60]
[353105624,1739562990045,1914.01880037,0.0002076,60]
[353105625,1739563001164,1507.99867599,0.0002076,60]
[353105626,1739563001447,1507.99867599,0.0002076,60]
[353105627,1739563001783,1507.99867599,0.0002076,60]
[353105628,1739563002156,1507.99867599,0.0002076,60]
[353105629,1739563027039,73169.02879192,0.0002076,60]
[353105630,1739563027432,73169.02879192,0.0002076,60]
[353105631,1739563027935,73169.02879192,0.0002076,60]
[353105632,1739563028223,73169.02879192,0.0002076,60]
[353105633,1739563035021,9269.4234336,0.0002076,60]
[353105634,1739563035183,9269.4234336,0.0002076,60]
[353105635,1739563035690,9269.4234336,0.0002076,60]
[353105636,1739563036410,9269.4234336,0.0002076,60]
[353105637,1739563041737,13500.0,0.00015,7]
[353105638,1739563041857,329.46648343,0.0002076,60]
[353105639,1739563042190,329.46648343,0.0002076,60]
[353105640,1739563042496,329.46648343,0.0002076,60]
[353105641,1739563042789,329.46648343,0.0002076,60]
[353105642,1739563051990,5736.3181631,0.0002076,60]
[353105643,1739563052308,5736.3181631,0.0002076,60]
[353105644,1739563052609,5736.3181631,0.0002076,60]
[353105645,1739563052913,5736.3181631,0.0002076,60]
[353105646,1739563392326,346.15524434,0.00013698,7]
[353105647,1739563569346,149075.68176494,0.00020753,60]
[353105648,1739563569619,149075.68176494,0.00020753,60]
[353105649,1739563569896,86832.47370078,0.00020753,60]
[353105678,1739563832015,-662.33231003,8.851e-05,2]
[353105680,1739563832029,-268.59,8.851e-05,2]
[353105684,1739563832058,-61.95658997,8.851e-05,2]
[353105686,1739563832068,-626.9587,8.973e-05,2]
[353105688,1739563832079,-169.45,0.00010137,2]
[353105690,1739563832089,-907.61,0.0001088,2]
[353105693,1739563832099,-873.73273056,0.00011627,2]
[353105696,1739563832109,-250.0,0.00011695,2]
[353105698,1739563832119,-16963.25279849,0.00011704,2]
[353105700,1739563832131,-4014.45255788,0.00011704,2]
[353105702,1739563832143,-832.64720817,0.00011704,2]
[353105705,1739563832156,-605.77977936,0.00011704,2]
[353105707,1739563832168,-3172.8981921,0.00011704,2]
[353105709,1739563832181,-283.90428462,0.00011704,2]
[353105711,1739563832194,-372.98264545,0.00011704,2]
[353105712,1739563832206,-978.48239423,0.00011704,2]
[353105713,1739563832240,-881.85133044,0.00011704,2]
[353105714,1739563832252,-1000.0,0.00011704,2]
[353105715,1739563832265,-738.28295851,0.00011704,2]
[353105716,1739563832278,-327.4148016,0.00011704,2]
[353105717,1739563832290,-1000.0,0.00011704,2]
[353105718,1739563832303,-841.49650118,0.00011704,2]
[353105719,1739563832314,-1893.90349882,0.00011706,2]
[353105720,1739563832332,-8322.30101821,0.00011706,2]
[353105721,1739563832353,-270.72136146,0.00011706,2]
[353105722,1739563832367,-153.0,0.00011727,2]
[353105723,1739563832377,-153.0,0.00011727,2]
[353105725,1739563832387,-153.0,0.00011727,2]
[353105727,1739563832398,-153.0,0.00011727,2]
[353105729,1739563832407,-500.0,0.00011762,2]
[353105731,1739563832417,-901.38,0.0001178,2]
[353105733,1739563832427,-999.99,0.00011831,2]
[353105734,1739563832438,-150.0,0.00011986,2]
[353105736,1739563832448,-176.28048689,0.00011987,2]
[353105738,1739563832458,-293.1,0.00011987,2]
[353105740,1739563832468,-66156.54,0.00011987,2]
[353105741,1739563832477,-6053.93,0.00011987,2]
[353105743,1739563832487,-909.49,0.00011987,2]
[353105745,1739563832497,-468.6,0.00011987,2]
[353105747,1739563832507,-151.26,0.00012064,2]
[353105750,1739563832522,-8069.92240238,0.00012064,2]
[353105752,1739563832535,-937.48759762,0.00012064,2]
[353105754,1739563832545,-150.99,0.00012064,2]
[353105757,1739563832555,-150.99,0.00012064,2]
[353105760,1739563832566,-151.26,0.00012067,2]
[353105763,1739563832575,-151.26,0.0001207,2]
[353105766,1739563832586,-151.26,0.00012074,2]
[353105768,1739563832595,-151.26,0.00012077,2]
[353105770,1739563832606,-151.26,0.0001208,2]
[353105772,1739563832616,-2000.0,0.00012083,2]
[353105774,1739563832626,-151.26,0.00012083,2]
[353105776,1739563832636,-151.26,0.00012086,2]
[353105778,1739563832646,-151.26,0.0001209,2]
[353105780,1739563832656,-151.26,0.00012093,2]
[353105782,1739563832665,-151.26,0.00012096,2]
[353105784,1739563832675,-151.26,0.00012099,2]
[353105786,1739563832685,-151.26,0.00012102,2]
[353105788,1739563832694,-151.26,0.00012105,2]
[353105790,1739563832704,-151.26,0.00012109,2]
[353105792,1739563832714,-151.26,0.00012112,2]
[353105794,1739563832724,-151.26,0.00012115,2]
[353105795,1739563832735,-1273.0,0.00012116,2]
[353105796,1739563832745,-2025.0,0.00012116,2]
[353105797,1739563832755,-569.0,0.00012116,2]
[353105798,1739563832766,-492.255,0.00012116,2]
[353105799,1739563832777,-783.0,0.00012116,2]
[353105800,1739563832787,-557.278,0.00012116,2]
[353105801,1739563832798,-1502.146,0.00012116,2]
[353105802,1739563832809,-4027.0,0.00012116,2]
[353105837,1739563833198,-3915.0,0.00012116,2]
[353105840,1739563833221,-150.0,0.00012116,2]
[353105842,1739563833232,-1109.0,0.00012116,2]
[353105845,1739563833243,-151.26,0.00012118,2]
[353105847,1739563833254,-151.26,0.00012121,2]
[353105849,1739563833265,-151.26,0.00012124,2]
[353105851,1739563833275,-170.72,0.00012145,2]
[353105853,1739563833286,-873.73273054,0.0001228,2]
[353105854,1739563833296,-340.59,0.00012336,2]
[353105856,1739563833307,-200.0,0.00012341,2]
[353105859,1739563833317,-23900.0,0.00012385,2]
[353105861,1739563833327,-6373.26,0.00012388,2]
[353105862,1739563833337,-1000.0,0.00012422,2]
[353105864,1739563833347,-150.0,0.000126,2]
[353105867,1739563833359,-150.0,0.000126,2]
[353105869,1739563833369,-150.0,0.000126,2]
[353105871,1739563833379,-150.21347788,0.000126,2]
[353105873,1739563833389,-150.0,0.000126,2]
[353105874,1739563833399,-250.0,0.00012617,2]
[353105877,1739563833414,-369.85365883,0.00012667,2]
[353105879,1739563833428,-321.22634117,0.00012667,2]
[353105881,1739563833440,-150.0,0.00012693,2]
[353105883,1739563833451,-533.21,0.0001271,2]
[353105885,1739563833461,-150.0,0.00012787,2]
[353105887,1739563833471,-150.0,0.000128,2]
[353105889,1739563833482,-599.05,0.00012819,2]
[353105891,1739563833494,-150.0,0.0001288,2]
[353105893,1739563833505,-873.73273054,0.00012932,2]
[353105895,1739563833515,-150.0,0.0001295,2]
[353105897,1739563833525,-1728.24,0.00012965,2]
[353105899,1739563833535,-167.41,0.00012973,2]
[353105901,1739563833545,-150.0,0.00012973,2]
[353105903,1739563833555,-150.0,0.00013,2]
[353105905,1739563833565,-255.0,0.00013065,2]
[353105907,1739563833575,-150.0,0.00013067,2]
[353105909,1739563833585,-176.61,0.00013113,2]
[353105911,1739563833594,-574.71016528,0.00013143,2]
[353105914,1739563833607,-332.89983472,0.00013143,2]
[353105916,1739563833617,-150.0,0.0001316,2]
[353105918,1739563833626,-517.09216528,0.00013193,2]
[353105920,1739563833638,-428.94,0.00013193,2]
[353105922,1739563833650,-53.96783472,0.00013193,2]
[353105924,1739563833659,-150.0,0.000132,2]
[353105926,1739563833669,-150.0,0.00013253,2]
[353105928,1739563833679,-1000.0,0.00013257,2]
[353105930,1739563833689,-150.0,0.000133,2]
[353105932,1739563833699,-150.0,0.000133,2]
[353105934,1739563833708,-150.0,0.00013347,2]
[353105936,1739563833718,-168.66,0.00013394,2]
[353105938,1739563833728,-150.0,0.000134,2]
[353105940,1739563833739,-2068.991,0.0001343,2]
[353105942,1739563833748,-150.0,0.0001344,2]
[353105944,1739563833758,-1000.0,0.00013483,2]
[353105946,1739563833768,-500.0,0.00013487,2]
[353105948,1739563833777,-2000.0,0.00013487,2]
[353105950,1739563833787,-500.0,0.00013487,2]
[353105952,1739563833797,-200.0,0.00013487,2]
[353105954,1739563833807,-150.0,0.00013533,2]
[353105956,1739563833817,-873.73273054,0.00013585,2]
[353105958,1739563833827,-659.43160261,0.00013598,2]
[353105960,1739563833837,-165.4830014,0.00013598,2]
[353105962,1739563833847,-163.2019995,0.00013598,2]
[353105964,1739563833856,-330.22596598,0.00013598,2]
[353105966,1739563833866,-150.0,0.000136,2]
[353105968,1739563833875,-150.0,0.00013627,2]
[353105970,1739563833885,-163.20199949,0.00013639,2]
[353105972,1739563833895,-150.0,0.0001365,2]
[353105974,1739563833905,-659.4316026,0.00013653,2]
[353105976,1739563833915,-523.52460611,0.0001368,2]
[353105980,1739563833937,-163.20199949,0.0001368,2]
[353105982,1739563833948,-427.60764284,0.0001368,2]
[353105984,1739563833958,-1010.642811,0.00013694,2]
[353105986,1739563833968,-386.44719126,0.00013697,2]
[353105988,1739563833978,-390.44587663,0.00013697,2]
[353105990,1739563833989,-523.8693422,0.00013697,2]
[353105992,1739563833999,-469.23866742,0.00013697,2]
[353105994,1739563834010,-152.50124049,0.00013697,2]
[353105996,1739563834019,-500.0,0.00013697,2]
[353105998,1739563834030,-288.28171313,0.00013698,2]
[353106000,1739563834040,-500.0,0.00013698,2]
[353106003,1739563834051,-500.0,0.00013698,2]
[353106005,1739563834061,-500.0,0.00013698,2]
[353106007,1739563834072,-500.0,0.00013698,2]
[353106009,1739563834083,-295.63692837,0.00013698,2]
[353106011,1739563834093,-500.0,0.00013698,2]
[353106013,1739563834104,-500.0,0.00013698,2]
[353106015,1739563834114,-500.0,0.00013698,2]
[353106017,1739563834124,-501.15265856,0.00013698,2]
[353106019,1739563834134,-500.0,0.00013698,2]
[353106021,1739563834144,-500.0,0.00013698,2]
[353106023,1739563834154,-500.0,0.00013698,2]
[353106025,1739563834164,-501.60271732,0.00013698,2]
[353106027,1739563834174,-500.0,0.00013698,2]
[353106029,1739563834185,-500.0,0.00013698,2]
[353106031,1739563834195,-500.0,0.00013698,2]
[353106033,1739563834205,-504.29919727,0.00013698,2]
[353106035,1739563834216,-500.0,0.00013698,2]
[353106037,1739563834226,-500.0,0.00013698,2]
[353106039,1739563834237,-202.44688313,0.00013698,2]
[353106041,1739563834248,-500.0,0.00013698,2]
[353106043,1739563834259,-61.33134651,0.00013698,2]
[353106046,1739563834278,-438.66865349,0.00013698,2]
[353106048,1739563834288,-500.0,0.00013698,2]
[353106050,1739563834299,-500.0,0.00013698,2]
[353106052,1739563834309,-500.0,0.00013698,2]
[353106054,1739563834319,-500.0,0.00013698,2]
[353106057,1739563834330,-500.0,0.00013698,2]
[353106059,1739563834340,-500.0,0.00013698,2]
[353106061,1739563834351,-500.0,0.00013698,2]
[353106063,1739563834364,-500.0,0.00013698,2]
[353106065,1739563834374,-500.0,0.00013698,2]
[353106067,1739563834383,-500.0,0.00013698,2]
[353106069,1739563834394,-500.0,0.00013698,2]
[353106071,1739563834405,-501.78996538,0.00013698,2]
[353106073,1739563834415,-500.0,0.00013698,2]
[353106075,1739563834426,-500.0,0.00013698,2]
[353106077,1739563834436,-500.0,0.00013698,2]
[353106079,1739563834446,-500.0,0.00013698,2]
[353106081,1739563834456,-500.0,0.00013698,2]
[353106083,1739563834465,-503.69616319,0.00013698,2]
[353106085,1739563834475,-500.0,0.00013698,2]
[353106087,1739563834486,-500.0,0.00013698,2]
[353106089,1739563834495,-506.24348283,0.00013698,2]
[353106091,1739563834507,-500.0,0.00013698,2]
[353106093,1739563834516,-500.0,0.00013698,2]
[353106095,1739563834526,-942.67,0.00013698,2]
[353106097,1739563834536,-500.0,0.00013698,2]
[353106099,1739563834547,-502.39545389,0.00013698,2]
[353106101,1739563834557,-500.0,0.00013698,2]
[353106103,1739563834567,-500.0,0.00013698,2]
[353106105,1739563834578,-500.0,0.00013698,2]
[353106107,1739563834587,-500.0,0.00013698,2]
[353106109,1739563834597,-676.71,0.00013698,2]
[353106111,1739563834606,-697.37,0.00013698,2]